fUST/lending_fUST_20240429
["ID","MTS","AMOUNT","RATE_DAILY","PERIOD"]
[324901689,1714404645064,-500.0,0.00047123,30]
[324901690,1714404645073,-678.42,0.00047123,30]
[324901691,1714404645082,-500.0,0.00047123,30]
[324901692,1714404645091,-624.74,0.00047123,30]
[324901693,1714404645103,-200.0,0.00047123,30]
[324901694,1714404645112,-639.71,0.00047123,7]
[324901695,1714404645123,-500.0,0.00047123,30]
[324901696,1714404645132,-500.0,0.00047123,30]
[324901697,1714404645142,-573.24,0.00047123,30]
[324901698,1714404645151,-500.0,0.00047123,2]
[324901700,1714404645161,-500.0,0.00047123,30]
[324901702,1714404645171,-500.0,0.00047123,30]
[324901704,1714404645180,-500.0,0.00047123,30]
[324901706,1714404645189,-500.0,0.00047123,30]
[324901708,1714404645199,-500.0,0.00047123,30]
[324901710,1714404645208,-500.0,0.00047123,30]
[324901712,1714404645218,-500.0,0.00047123,30]
[324901714,1714404645227,-500.0,0.00047123,30]
[324901716,1714404645238,-902.78,0.00047123,30]
[324901718,1714404645247,-500.0,0.00047123,30]
[324901720,1714404645256,-500.0,0.00047123,30]
[324901722,1714404645266,-500.0,0.00047123,30]
[324901723,1714404645276,-500.0,0.00047123,30]
[324901726,1714404645285,-500.0,0.00047123,30]
[324901728,1714404645295,-500.0,0.00047123,30]
[324901730,1714404645306,-500.0,0.00047123,30]
[324901732,1714404645317,-500.0,0.00047123,30]
[324901733,1714404645326,-500.0,0.00047123,30]
[324901734,1714404645335,-654.5,0.00047123,30]
[324901736,1714404645344,-500.0,0.00047123,30]
[324901738,1714404645355,-500.0,0.00047123,30]
[324901740,1714404645364,-500.0,0.00047123,30]
[324901742,1714404645372,-500.0,0.00047123,30]
[324901744,1714404645382,-500.0,0.00047123,30]
[324901746,1714404645391,-500.0,0.00047123,30]
[324901748,1714404645400,-587.0,0.00047123,30]
[324901750,1714404645409,-500.0,0.00047123,30]
[324901752,1714404645418,-573.73,0.00047123,30]
[324901754,1714404645427,-500.0,0.00047123,30]
[324901756,1714404645436,-500.0,0.00047123,30]
[324901757,1714404645446,-660.6,0.00047123,30]
[324901759,1714404645455,-500.0,0.00047123,30]
[324901761,1714404645465,-500.0,0.00047123,30]
[324901763,1714404645476,-500.0,0.00047123,30]
[324901765,1714404645485,-500.0,0.00047123,30]
[324901767,1714404645494,-500.0,0.00047123,30]
[324901769,1714404645503,-585.13,0.00047123,30]
[324901771,1714404645512,-500.0,0.00047123,30]
[324901773,1714404645521,-500.0,0.00047123,30]
[324901775,1714404645531,-916.79,0.00047123,30]
[324901777,1714404645540,-827.61,0.00047123,30]
[324901779,1714404645549,-519.23,0.00047123,30]
[324901781,1714404645558,-500.0,0.00047123,30]
[324901783,1714404645568,-907.57,0.00047123,30]
[324901785,1714404645577,-500.0,0.00047123,30]
[324901787,1714404645586,-500.0,0.00047123,30]
[324901789,1714404645595,-500.0,0.00047123,30]
[324901791,1714404645606,-500.0,0.00047123,30]
[324901793,1714404645615,-500.0,0.00047123,30]
[324901795,1714404645625,-601.89,0.00047123,30]
[324901797,1714404645634,-500.0,0.00047123,30]
[324901799,1714404645644,-500.0,0.00047123,30]
[324901801,1714404645654,-945.54,0.00047123,30]
[324901803,1714404645663,-500.0,0.00047123,30]
[324901805,1714404645673,-500.0,0.00047123,30]
[324901806,1714404645683,-500.0,0.00047123,30]
[324901808,1714404645692,-500.0,0.00047123,30]
[324901810,1714404645702,-500.0,0.00047123,30]
[324901812,1714404645711,-500.0,0.00047123,30]
[324901814,1714404645720,-500.0,0.00047123,30]
[324901816,1714404645729,-500.0,0.00047123,30]
[324901818,1714404645738,-500.0,0.00047123,30]
[324901820,1714404645748,-500.0,0.00047123,30]
[324901822,1714404645757,-534.91,0.00047123,30]
[324901824,1714404645766,-454.79592923,0.00047123,30]
[324901826,1714404645775,-650.3,0.00047123,30]
[324901828,1714404645784,-509.97,0.00047123,30]
[324901830,1714404645793,-500.0,0.00047123,21]
[324901832,1714404645804,-570.75,0.00047123,30]
[324901834,1714404645814,-679.59,0.00047123,30]
[324901836,1714404645823,-903.13,0.00047123,30]
[324901838,1714404645833,-500.0,0.00047123,30]
[324901840,1714404645842,-500.0,0.00047123,30]
[324901842,1714404645854,-500.0,0.00047123,30]
[324901844,1714404645863,-500.0,0.00047123,30]
[324901846,1714404645872,-500.0,0.00047123,30]
[324901848,1714404645881,-500.0,0.00047123,30]
[324901850,1714404645892,-476.05055754,0.00047123,30]
[324901852,1714404645902,-500.0,0.00047123,30]
[324901854,1714404645911,-500.0,0.00047123,30]
[324901856,1714404645920,-523.71,0.00047123,30]
[324901858,1714404645929,-500.0,0.00047123,30]
[324901860,1714404645939,-500.0,0.00047123,30]
[324901862,1714404645948,-500.0,0.00047123,30]
[324901864,1714404645957,-595.46,0.00047123,30]
[324901866,1714404645966,-611.38,0.00047123,30]
[324901868,1714404645975,-559.44,0.00047123,30]
[324901870,1714404645984,-500.0,0.00047123,30]
[324901872,1714404645994,-500.0,0.00047123,30]
[324901875,1714404646003,-500.0,0.00047123,30]
[324901877,1714404646013,-623.74,0.00047123,30]
[324901878,1714404646022,-500.0,0.00047123,30]
[324901880,1714404646032,-500.0,0.00047123,30]
[324901881,1714404646041,-672.63,0.00047123,30]
[324901882,1714404646050,-500.0,0.00047123,30]
[324901883,1714404646060,-563.66,0.00047123,30]
[324901884,1714404646075,-500.0,0.00047123,30]
[324901886,1714404646084,-500.0,0.00047123,30]
[324901888,1714404646094,-505.21,0.00047123,30]
[324901890,1714404646105,-500.0,0.00047123,30]
[324901892,1714404646114,-500.0,0.00047123,30]
[324901895,1714404646136,-744.86,0.00047123,30]
[324901897,1714404646146,-500.0,0.00047123,30]
[324901899,1714404646155,-500.0,0.00047123,30]
[324901902,1714404646165,-500.0,0.00047123,30]
[324901920,1714404646291,-500.0,0.00047123,30]
[324901922,1714404646300,-500.0,0.00047123,30]
[324901924,1714404646310,-500.0,0.00047123,30]
[324901926,1714404646324,-500.0,0.00047123,30]
[324901928,1714404646334,-782.11,0.00047123,30]
[324901930,1714404646343,-500.0,0.00047123,30]
[324901932,1714404646354,-578.45,0.00047123,30]
[324901934,1714404646364,-500.0,0.00047123,30]
[324901936,1714404646373,-500.0,0.00047123,30]
[324901938,1714404646382,-500.0,0.00047123,30]
[324901940,1714404646393,-500.0,0.00047123,30]
[324901942,1714404646403,-500.0,0.00047123,30]
[324901944,1714404646413,-500.0,0.00047123,30]
[324901946,1714404646422,-500.0,0.00047123,30]
[324901948,1714404646432,-500.0,0.00047123,30]
[324901950,1714404646441,-567.86,0.00047123,30]
[324901952,1714404646450,-673.67,0.00047123,30]
[324901954,1714404646460,-500.0,0.00047123,30]
[324901956,1714404646469,-500.0,0.00047123,30]
[324901958,1714404646479,-636.74631871,0.00047123,30]
[324901960,1714404646488,-500.0,0.00047123,30]
[324901962,1714404646496,-500.0,0.00047123,30]
[324901964,1714404646505,-317.9,0.00047123,30]
[324901966,1714404646514,-500.0,0.00047123,30]
[324901968,1714404646523,-500.0,0.00047123,30]
[324901970,1714404646532,-758.68,0.00047123,30]
[324901972,1714404646542,-500.0,0.00047123,30]
[324901974,1714404646551,-500.0,0.00047123,30]
[324901975,1714404646560,-500.0,0.00047123,30]
[324901977,1714404646569,-500.0,0.00047123,30]
[324901979,1714404646578,-735.67,0.00047123,30]
[324901981,1714404646587,-500.0,0.00047123,3]
[324901984,1714404646596,-500.0,0.00047123,30]
[324901985,1714404646607,-500.0,0.00047397,30]
[324901987,1714404646616,-646.42877873,0.00047397,30]
[324901989,1714404646626,-500.0,0.00047397,30]
[324901991,1714404646635,-500.0,0.00047397,30]
[324901993,1714404646644,-500.0,0.00047397,30]
[324901995,1714404646654,-833.32,0.00047397,30]
[324901997,1714404646663,-500.0,0.00047397,30]
[324901999,1714404646672,-474.10410609,0.00047397,30]
[324902001,1714404646681,-300.0,0.00047397,7]
[324902003,1714404646690,-500.0,0.00047397,30]
[324902005,1714404646699,-500.0,0.00047397,30]
[324902007,1714404646708,-500.0,0.00047397,30]
[324902009,1714404646719,-500.0,0.00047397,30]
[324902011,1714404646728,-500.0,0.00047397,30]
[324902013,1714404646738,-714.82,0.00047397,30]
[324902015,1714404646747,-500.0,0.00047397,30]
[324902017,1714404646756,-500.0,0.00047397,30]
[324902019,1714404646765,-500.0,0.00047397,30]
[324902021,1714404646774,-500.0,0.00047397,30]
[324902023,1714404646783,-500.0,0.00047397,30]
[324902025,1714404646792,-500.0,0.00047397,30]
[324902027,1714404646801,-500.0,0.00047397,30]
[324902029,1714404646810,-500.0,0.00047397,30]
[324902031,1714404646820,-625.26,0.00047397,120]
[324902033,1714404646829,-500.0,0.00047397,30]
[324902035,1714404646838,-154.82968734,0.00047397,30]
[324902037,1714404646849,-500.0,0.00047397,30]
[324902039,1714404646858,-500.0,0.00047397,30]
[324902041,1714404646866,-500.0,0.00047397,30]
[324902043,1714404646876,-500.0,0.00047397,30]
[324902045,1714404646887,-500.0,0.00047397,30]
[324902047,1714404646896,-678.42,0.00047397,30]
[324902049,1714404646905,-500.0,0.00047397,30]
[324902051,1714404646914,-624.74,0.00047397,30]
[324902053,1714404646924,-200.0,0.00047397,30]
[324902055,1714404646932,-639.71,0.00047397,7]
[324902057,1714404646941,-500.0,0.00047397,30]
[324902059,1714404646951,-500.0,0.00047397,30]
[324902060,1714404646960,-573.24,0.00047397,30]
[324902062,1714404646969,-500.0,0.00047397,2]
[324902064,1714404646979,-500.0,0.00047397,30]
[324902066,1714404646988,-500.0,0.00047397,30]
[324902068,1714404646998,-500.0,0.00047397,30]
[324902070,1714404647007,-500.0,0.00047397,30]
[324902072,1714404647017,-500.0,0.00047397,30]
[324902074,1714404647026,-408.40144856,0.00047397,30]
[324902076,1714404647035,-500.0,0.00047397,30]
[324902078,1714404647045,-500.0,0.00047397,30]
[324902080,1714404647054,-902.78,0.00047397,30]
[324902082,1714404647063,-500.0,0.00047397,30]
[324902084,1714404647072,-500.0,0.00047397,30]
[324902086,1714404647081,-500.0,0.00047397,30]
[324902088,1714404647090,-500.0,0.00047397,30]
[324902090,1714404647099,-500.0,0.00047397,30]
[324902092,1714404647109,-243.92221705,0.00047397,30]
[324902094,1714404647118,-500.0,0.00047397,30]
[324902096,1714404647128,-500.0,0.00047397,30]
[324902098,1714404647137,-500.0,0.00047397,30]
[324902100,1714404647147,-654.5,0.00047397,30]
[324902102,1714404647156,-500.0,0.00047397,30]
[324902104,1714404647166,-500.0,0.00047397,30]
[324902106,1714404647175,-500.0,0.00047397,30]
[324902108,1714404647184,-500.0,0.00047397,30]
[324902110,1714404647194,-500.0,0.00047397,30]
[324902112,1714404647203,-500.0,0.00047397,30]
[324902114,1714404647213,-587.0,0.00047397,30]
[324902116,1714404647222,-500.0,0.00047397,30]
[324902118,1714404647231,-573.73,0.00047397,30]
[324902120,1714404647241,-500.0,0.00047397,30]
[324902122,1714404647250,-500.0,0.00047397,30]
[324902124,1714404647259,-660.6,0.00047397,30]
[324902126,1714404647268,-500.0,0.00047397,30]
[324902128,1714404647277,-500.0,0.00047397,30]
[324902130,1714404647286,-500.0,0.00047397,30]
[324902132,1714404647295,-500.0,0.00047397,30]
[324902133,1714404647304,-500.0,0.00047397,30]
[324902135,1714404647318,-585.13,0.00047397,30]
[324902137,1714404647327,-500.0,0.00047397,30]
[324902139,1714404647337,-500.0,0.00047397,30]
[324902141,1714404647347,-916.79,0.00047397,30]
[324902143,1714404647357,-827.61,0.00047397,30]
[324902146,1714404647367,-519.23,0.00047397,30]
[324902148,1714404647378,-500.0,0.00047397,30]
[324902149,1714404647389,-907.57,0.00047397,30]
[324902151,1714404647401,-500.0,0.00047397,30]
[324902153,1714404647411,-500.0,0.00047397,30]
[324902155,1714404647421,-500.0,0.00047397,30]
[324902157,1714404647431,-500.0,0.00047397,30]
[324902159,1714404647440,-500.0,0.00047397,30]
[324902161,1714404647448,-601.89,0.00047397,30]
[324902163,1714404647458,-500.0,0.00047397,30]
[324902165,1714404647467,-500.0,0.00047397,30]
[324902167,1714404647476,-945.54,0.00047397,30]
[324902169,1714404647486,-500.0,0.00047397,30]
[324902171,1714404647495,-500.0,0.00047397,30]
[324902173,1714404647504,-500.0,0.00047397,30]
[324902175,1714404647513,-500.0,0.00047397,30]
[324902177,1714404647523,-500.0,0.00047397,30]
[324902179,1714404647532,-500.0,0.00047397,30]
[324902181,1714404647542,-397.17105752,0.00047397,30]
[324902183,1714404647551,-500.0,0.00047397,30]
[324902185,1714404647560,-467.76,0.00047397,30]
[324902187,1714404647569,-500.0,0.00047397,30]
[324902189,1714404647578,-534.91,0.00047397,30]
[324902191,1714404647587,-650.3,0.00047397,30]
[324902193,1714404647596,-509.97,0.00047397,30]
[324902195,1714404647607,-500.0,0.00047397,21]
[324902197,1714404647617,-570.75,0.00047397,30]
[324902199,1714404647626,-679.59,0.00047397,30]
[324902201,1714404647635,-903.13,0.00047397,30]
[324902203,1714404647644,-500.0,0.00047397,30]
[324902205,1714404647653,-500.0,0.00047397,30]
[324902207,1714404647662,-500.0,0.00047397,30]
[324902209,1714404647671,-500.0,0.00047397,30]
[324902211,1714404647681,-500.0,0.00047397,30]
[324902213,1714404647690,-500.0,0.00047397,30]
[324902216,1714404647700,-500.0,0.00047397,30]
[324902217,1714404647709,-523.71,0.00047397,30]
[324902219,1714404647718,-500.0,0.00047397,30]
[324902221,1714404647727,-500.0,0.00047397,30]
[324902223,1714404647736,-500.0,0.00047397,30]
[324902225,1714404647745,-595.46,0.00047397,30]
[324902227,1714404647755,-611.38,0.00047397,30]
[324902229,1714404647764,-559.44,0.00047397,30]
[324902231,1714404647773,-500.0,0.00047397,30]
[324902233,1714404647782,-500.0,0.00047397,30]
[324902235,1714404647791,-500.0,0.00047397,30]
[324902237,1714404647800,-623.74,0.00047397,30]
[324902239,1714404647810,-500.0,0.00047397,30]
[324902241,1714404647819,-500.0,0.00047397,30]
[324902243,1714404647828,-672.63,0.00047397,30]
[324902245,1714404647837,-500.0,0.00047397,30]
[324902247,1714404647847,-563.66,0.00047397,30]
[324902249,1714404647856,-500.0,0.00047397,30]
[324902251,1714404647865,-505.21,0.00047397,30]
[324902253,1714404647874,-500.0,0.00047397,30]
[324902255,1714404647884,-500.0,0.00047397,30]
[324902257,1714404647893,-744.86,0.00047397,30]
[324902259,1714404647903,-266.26143193,0.00047397,30]
[324902261,1714404647913,-302.90641638,0.00047397,30]
[324902263,1714404647922,-500.0,0.00047397,30]
[324902265,1714404647931,-500.0,0.00047397,30]
[324902267,1714404647940,-500.0,0.00047397,30]
[324902269,1714404647950,-500.0,0.00047397,30]
[324902271,1714404647959,-500.0,0.00047397,30]
[324902273,1714404647969,-782.11,0.00047397,30]
[324902276,1714404647978,-500.0,0.00047397,30]
[324902278,1714404647987,-578.45,0.00047397,30]
[324902279,1714404647997,-264.34001041,0.00047397,30]
[324902281,1714404648006,-500.0,0.00047397,30]
[324902283,1714404648015,-500.0,0.00047397,30]
[324902286,1714404648026,-500.0,0.00047397,30]
[324902288,1714404648036,-500.0,0.00047397,30]
[324902290,1714404648045,-500.0,0.00047397,30]
[324902292,1714404648054,-500.0,0.00047397,30]
[324902294,1714404648063,-500.0,0.00047397,30]
[324902296,1714404648072,-567.86,0.00047397,30]
[324902298,1714404648081,-673.67,0.00047397,30]
[324902300,1714404648091,-500.0,0.00047397,30]
[324902302,1714404648100,-500.0,0.00047397,30]
[324902303,1714404648109,-500.0,0.00047397,30]
[324902305,1714404648118,-500.0,0.00047397,30]
[324902307,1714404648127,-500.0,0.00047397,30]
[324902309,1714404648137,-500.0,0.00047397,30]
[324902311,1714404648146,-758.68,0.00047397,30]
[324902314,1714404648157,-500.0,0.00047397,30]
[324902316,1714404648166,-526.51597777,0.00047397,30]
[324902317,1714404648175,-500.0,0.00047397,30]
[324902319,1714404648184,-500.0,0.00047397,30]
[324902321,1714404648193,-735.67,0.00047397,30]
[324902323,1714404648203,-631.90086262,0.00047397,3]
[324902325,1714404648212,-300.0,0.000474,22]
[324902327,1714404648222,-336.945411,0.00047489,120]
[324902329,1714404648231,-209.33333333,0.00047534,120]
[324902332,1714404648242,-500.0,0.00047671,30]
[324902334,1714404648252,-500.0,0.00047671,30]
[324902336,1714404648262,-500.0,0.00047671,30]
[324902338,1714404648271,-500.0,0.00047671,30]
[324902340,1714404648280,-833.32,0.00047671,30]
[324902341,1714404648289,-500.0,0.00047671,30]
[324902343,1714404648298,-300.0,0.00047671,7]
[324902345,1714404648308,-500.0,0.00047671,30]
[324902347,1714404648321,-511.0,0.00047671,30]
[324902349,1714404648330,-500.0,0.00047671,30]
[324902352,1714404648340,-500.0,0.00047671,30]
[324902353,1714404648350,-500.0,0.00047671,30]
[324902355,1714404648359,-714.82,0.00047671,30]
[324902357,1714404648368,-500.0,0.00047671,30]
[324902359,1714404648377,-500.0,0.00047671,30]
[324902362,1714404648387,-500.0,0.00047671,30]
[324902363,1714404648397,-500.0,0.00047671,30]
[324902365,1714404648406,-500.0,0.00047671,30]
[324902367,1714404648416,-500.0,0.00047671,30]
[324902369,1714404648425,-500.0,0.00047671,30]
[324902371,1714404648434,-500.0,0.00047671,30]
[324902373,1714404648443,-625.26,0.00047671,120]
[324902375,1714404648452,-500.0,0.00047671,30]
[324902377,1714404648462,-639.19114667,0.00047671,30]
[324902379,1714404648471,-500.0,0.00047671,30]
[324902381,1714404648480,-500.0,0.00047671,30]
[324902383,1714404648489,-500.0,0.00047671,30]
[324902385,1714404648498,-500.0,0.00047671,30]
[324902387,1714404648507,-678.42,0.00047671,30]
[324902389,1714404648517,-500.0,0.00047671,30]
[324902391,1714404648526,-624.74,0.00047671,30]
[324902393,1714404648535,-200.0,0.00047671,30]
[324902396,1714404648545,-639.71,0.00047671,7]
[324902397,1714404648554,-500.0,0.00047671,30]
[324902399,1714404648564,-500.0,0.00047671,30]
[324902401,1714404648573,-573.24,0.00047671,30]
[324902403,1714404648581,-500.0,0.00047671,2]
[324902405,1714404648591,-500.0,0.00047671,30]
[324902407,1714404648602,-500.0,0.00047671,30]
[324902410,1714404648611,-500.0,0.00047671,30]
[324902412,1714404648621,-500.0,0.00047671,30]
[324902414,1714404648631,-500.0,0.00047671,30]
[324902415,1714404648640,-500.0,0.00047671,30]
[324902418,1714404648649,-500.0,0.00047671,30]
[324902419,1714404648658,-902.78,0.00047671,30]
[324902421,1714404648667,-500.0,0.00047671,30]
[324902423,1714404648676,-500.0,0.00047671,30]
[324902426,1714404648686,-500.0,0.00047671,30]
[324902427,1714404648695,-500.0,0.00047671,30]
[324902429,1714404648704,-500.0,0.00047671,30]
[324902431,1714404648714,-500.0,0.00047671,30]
[324902433,1714404648723,-500.0,0.00047671,30]
[324902435,1714404648732,-500.0,0.00047671,30]
[324902437,1714404648741,-500.0,0.00047671,30]
[324902440,1714404648751,-500.0,0.00047671,30]
[324902441,1714404648760,-654.5,0.00047671,30]
[324902443,1714404648770,-500.0,0.00047671,30]
[324902445,1714404648779,-500.0,0.00047671,30]
[324902448,1714404648790,-500.0,0.00047671,30]
[324902449,1714404648799,-500.0,0.00047671,30]
[324902451,1714404648808,-587.0,0.00047671,30]
[324902454,1714404648818,-500.0,0.00047671,30]
[324902456,1714404648828,-573.73,0.00047671,30]
[324902457,1714404648837,-500.0,0.00047671,30]
[324902459,1714404648846,-500.0,0.00047671,30]
[324902460,1714404648859,-660.6,0.00047671,30]
[324902461,1714404648868,-500.0,0.00047671,30]
[324902462,1714404648877,-500.0,0.00047671,30]
[324902463,1714404648885,-505.85903248,0.00047671,30]
[324902464,1714404648895,-500.0,0.00047671,30]
[324902465,1714404648905,-428.22687292,0.00047671,30]
[324902466,1714404648914,-585.13,0.00047671,30]
[324902467,1714404648923,-500.0,0.00047671,30]
[324902468,1714404648932,-500.0,0.00047671,30]
[324902469,1714404648941,-916.79,0.00047671,30]
[324902470,1714404648951,-827.61,0.00047671,30]
[324902471,1714404648960,-519.23,0.00047671,30]
[324902477,1714404649073,-500.0,0.00047671,30]
[324902479,1714404649084,-907.57,0.00047671,30]
[324902481,1714404649094,-500.0,0.00047671,30]
[324902484,1714404649106,-393.45,0.00047671,30]
[324902486,1714404649115,-500.0,0.00047671,30]
[324902488,1714404649125,-500.0,0.00047671,30]
[324902489,1714404649134,-500.0,0.00047671,30]
[324902491,1714404649144,-601.89,0.00047671,30]
[324902493,1714404649154,-500.0,0.00047671,30]
[324902495,1714404649164,-500.0,0.00047671,30]
[324902497,1714404649174,-945.54,0.00047671,30]
[324902499,1714404649183,-500.0,0.00047671,30]
[324902501,1714404649193,-500.0,0.00047671,30]
[324902503,1714404649202,-500.0,0.00047671,30]
[324902505,1714404649212,-500.0,0.00047671,30]
[324902507,1714404649223,-500.0,0.00047671,30]
[324902509,1714404649233,-500.0,0.00047671,30]
[324902512,1714404649244,-500.0,0.00047671,30]
[324902513,1714404649253,-500.0,0.00047671,30]
[324902515,1714404649263,-534.91,0.00047671,30]
[324902518,1714404649274,-650.3,0.00047671,30]
[324902520,1714404649283,-509.97,0.00047671,30]
[324902521,1714404649292,-500.0,0.00047671,21]
[324902523,1714404649301,-570.75,0.00047671,30]
[324902525,1714404649314,-679.59,0.00047671,30]
[324902527,1714404649326,-903.13,0.00047671,30]
[324902529,1714404649335,-500.0,0.00047671,30]
[324902531,1714404649345,-500.0,0.00047671,30]
[324902533,1714404649355,-500.0,0.00047671,30]
[324902535,1714404649364,-500.0,0.00047671,30]
[324902537,1714404649373,-500.0,0.00047671,30]
[324902539,1714404649382,-500.0,0.00047671,30]
[324902541,1714404649392,-500.0,0.00047671,30]
[324902543,1714404649402,-523.71,0.00047671,30]
[324902545,1714404649411,-500.0,0.00047671,30]
[324902547,1714404649421,-500.0,0.00047671,30]
[324902549,1714404649431,-500.0,0.00047671,30]
[324902551,1714404649440,-595.46,0.00047671,30]
[324902553,1714404649450,-611.38,0.00047671,30]
[324902555,1714404649459,-559.44,0.00047671,30]
[324902557,1714404649468,-500.0,0.00047671,30]
[324902559,1714404649477,-500.0,0.00047671,30]
[324902561,1714404649488,-500.0,0.00047671,30]
[324902563,1714404649498,-623.74,0.00047671,30]
[324902565,1714404649508,-500.0,0.00047671,30]
[324902567,1714404649517,-500.0,0.00047671,30]
[324902569,1714404649527,-672.63,0.00047671,30]
[324902571,1714404649536,-500.0,0.00047671,30]
[324902573,1714404649545,-563.66,0.00047671,30]
[324902575,1714404649555,-500.0,0.00047671,30]
[324902577,1714404649564,-505.21,0.00047671,30]
[324902579,1714404649574,-500.0,0.00047671,30]
[324902581,1714404649583,-500.0,0.00047671,30]
[324902583,1714404649592,-744.86,0.00047671,30]
[324902585,1714404649601,-500.0,0.00047671,30]
[324902587,1714404649610,-500.0,0.00047671,30]
[324902589,1714404649620,-500.0,0.00047671,30]
[324902591,1714404649629,-500.0,0.00047671,30]
[324902593,1714404649638,-429.72645383,0.00047671,30]
[324902595,1714404649648,-782.11,0.00047671,30]
[324902597,1714404649657,-500.0,0.00047671,30]
[324902599,1714404649667,-578.45,0.00047671,30]
[324902601,1714404649677,-500.0,0.00047671,30]
[324902603,1714404649686,-500.0,0.00047671,30]
[324902605,1714404649696,-500.0,0.00047671,30]
[324902607,1714404649706,-500.0,0.00047671,30]
[324902609,1714404649715,-448.01099193,0.00047671,30]
[324902611,1714404649724,-500.0,0.00047671,30]
[324902613,1714404649734,-500.0,0.00047671,30]
[324902615,1714404649743,-567.86,0.00047671,30]
[324902618,1714404649753,-673.67,0.00047671,30]
[324902620,1714404649763,-500.0,0.00047671,30]
[324902621,1714404649772,-500.0,0.00047671,30]
[324902623,1714404649781,-500.0,0.00047671,30]
[324902626,1714404649791,-500.0,0.00047671,30]
[324902627,1714404649801,-500.0,0.00047671,30]
[324902630,1714404649810,-500.0,0.00047671,30]
[324902632,1714404649820,-758.68,0.00047671,30]
[324902633,1714404649829,-500.0,0.00047671,30]
[324902636,1714404649838,-500.0,0.00047671,30]
[324902637,1714404649848,-500.0,0.00047671,30]
[324902639,1714404649859,-735.67,0.00047671,30]
[324902641,1714404649868,-153.41,0.0004794,35]
[324902643,1714404649878,-500.0,0.00047945,30]
[324902645,1714404649889,-200.71687999,0.00047945,30]
[324902647,1714404649899,-500.0,0.00047945,30]
[324902649,1714404649908,-500.0,0.00047945,30]
[324902651,1714404649917,-833.32,0.00047945,30]
[324902653,1714404649927,-500.0,0.00047945,30]
[324902655,1714404649936,-300.0,0.00047945,7]
[324902657,1714404649946,-500.0,0.00047945,30]
[324902660,1714404649955,-500.0,0.00047945,30]
[324902662,1714404649965,-500.0,0.00047945,30]
[324902663,1714404649975,-500.0,0.00047945,30]
[324902665,1714404649984,-714.82,0.00047945,30]
[324902667,1714404649994,-500.0,0.00047945,30]
[324902669,1714404650004,-500.0,0.00047945,30]
[324902671,1714404650013,-500.0,0.00047945,30]
[324902673,1714404650022,-500.0,0.00047945,30]
[324902676,1714404650032,-500.0,0.00047945,30]
[324902677,1714404650044,-183.12833911,0.00047945,30]